[Event "New York President's Day IM-C"]
[Site "New York USA"]
[Date "2025.02.17"]
[Round "8"]
[White "Golubka, Petro"]
[Black "Dhyana, Patel"]
[Result "1/2-1/2"]
[ECO "D85"]
[WhiteElo "2361"]
[BlackElo "2023"]
[WhiteFideId "-1"]
[BlackFideId "-1"]
[PlyCount "31"]
[GameId "524199469478"]
[EventDate "2025.02.14"]
[EventType "tourn"]
[EventRounds "9"]
[EventCountry "USA"]
[SourceTitle "Mega2025 Update 16"]
[Source "Chessbase"]
[SourceDate "2025.02.21"]
[SourceVersion "1"]
[SourceVersionDate "2025.02.21"]
[SourceQuality "1"]
[TimeControl "90+30"]

1. d4 {[%emt 0:00:00]} Nf6 {[%emt 0:00:00]} 2. c4 {[%emt 0:00:00]} g6 {[%emt 0:00:00]} 3. Nc3 {[%emt 0:00:00]} d5 {[%emt 0:00:00]} 4. cxd5 {[%emt 0:00:00]} Nxd5 {[%emt 0:00:00]} 5. e4 {[%emt 0:00:00]} Nxc3 {[%emt 0:00:00]} 6. bxc3 {[%emt 0:00:00]} Bg7 {[%emt 0:00:00]} 7. Nf3 {[%emt 0:00:00]} O-O {[%emt 0:00:00]} 8. Be2 {[%emt 0:00:00]} c5 {[%emt 0:00:00]} 9. O-O {[%emt 0:00:00]} Nc6 {[%emt 0:00:00]} 10. Be3 {[%emt 0:00:00]} Qa5 {[%emt 0:00:00]} 11. d5 {[%emt 0:00:00]} Ne5 {[%emt 0:00:00]} 12. Nd2 {[%emt 0:00:00]} c4 {[%emt 0:00:00]} 13. Bd4 {[%emt 0:00:00]} b5 {[%emt 0:00:00]} 14. h3 {[%emt 0:00:00]} Nd7 {[%emt 0:00:00]} 15. Bxg7 {[%emt 0:00:00]} Kxg7 {[%emt 0:00:00]} 16. a4 {[%emt 0:00:00]} 1/2-1/2

[Event "New York President's Day IM-C"]
[Site "New York USA"]
[Date "2025.02.17"]
[Round "9"]
[White "Lund, Silas"]
[Black "Golubka, Petro"]
[Result "1-0"]
[ECO "A69"]
[WhiteElo "2272"]
[BlackElo "2361"]
[WhiteFideId "-1"]
[BlackFideId "-1"]
[PlyCount "77"]
[GameId "524199469486"]
[EventDate "2025.02.14"]
[EventType "tourn"]
[EventRounds "9"]
[EventCountry "USA"]
[SourceTitle "Mega2025 Update 16"]
[Source "Chessbase"]
[SourceDate "2025.02.21"]
[SourceVersion "1"]
[SourceVersionDate "2025.02.21"]
[SourceQuality "1"]
[TimeControl "90+30"]

1. d4 {[%emt 0:00:00]} Nf6 {[%emt 0:00:00]} 2. c4 {[%emt 0:00:00]} c5 {[%emt 0:00:00]} 3. d5 {[%emt 0:00:00]} e6 {[%emt 0:00:00]} 4. Nc3 {[%emt 0:00:00]} exd5 {[%emt 0:00:00]} 5. cxd5 {[%emt 0:00:00]} d6 {[%emt 0:00:00]} 6. Nf3 {[%emt 0:00:00]} g6 {[%emt 0:00:00]} 7. Nd2 {[%emt 0:00:00]} Bg7 {[%emt 0:00:00]} 8. e4 {[%emt 0:00:00]} O-O {[%emt 0:00:00]} 9. Be2 {[%emt 0:00:00]} Re8 {[%emt 0:00:00]} 10. O-O {[%emt 0:00:00]} Na6 {[%emt 0:00:00]} 11. f4 {[%emt 0:00:00]} Nc7 {[%emt 0:00:00]} 12. a4 {[%emt 0:00:00]} b6 {[%emt 0:00:00]} 13. Bf3 {[%emt 0:00:00]} Ba6 {[%emt 0:00:00]} 14. Re1 {[%emt 0:00:00]} h5 {[%emt 0:00:00]} 15. h3 {[%emt 0:00:00]} Nd7 {[%emt 0:00:00]} 16. e5 {[%emt 0:00:00]} dxe5 {[%emt 0:00:00]} 17. d6 {[%emt 0:00:00]} Ne6 {[%emt 0:00:00]} 18. Nd5 {[%emt 0:00:00]} Nxf4 {[%emt 0:00:00]} 19. Nc7 {[%emt 0:00:00]} Nf6 {[%emt 0:00:00]} 20. Nxe8 {[%emt 0:00:00]} Qxe8 {[%emt 0:00:00]} 21. Ne4 {[%emt 0:00:00]} Nd3 {[%emt 0:00:00]} 22. Nxf6+ {[%emt 0:00:00]} Bxf6 {[%emt 0:00:00]} 23. d7 {[%emt 0:00:00]} Qd8 {[%emt 0:00:00]} 24. Bxa8 {[%emt 0:00:55.04]} Qxa8 {[%emt 0:00:00]} 25. Rf1 {[%emt 0:00:05]} Be7 {[%emt 0:00:00]} 26. a5 {[%emt 0:00:40]} Nxc1 {[%emt 0:00:00]} 27. Rxc1 {[%emt 0:02:43]} Bxf1 {[%emt 0:00:00]} 28. Qxf1 {[%emt 0:00:40]} Qc6 {[%emt 0:00:00]} 29. Rd1 {[%emt 0:00:54]} Bd8 {[%emt 0:00:00]} 30. Qa6 {[%emt 0:00:42]} h4 {[%emt 0:00:00]} 31. Qxa7 {[%emt 0:02:36]} bxa5 {[%emt 0:00:00]} 32. Qb8 {[%emt 0:00:15]} Qf6 {[%emt 0:00:00]} 33. Re1 {[%emt 0:00:26]} c4 {[%emt 0:00:00]} 34. Qxe5 {[%emt 0:01:09]} Qb6+ {[%emt 0:00:00]} 35. Kh1 {[%emt 0:00:45]} Bf6 {[%emt 0:00:00]} 36. Qd5 {[%emt 0:00:58]} Kg7 {[%emt 0:00:00]} 37. Rf1 {[%emt 0:00:47]} Qd8 {[%emt 0:00:00]} 38. Qf3 {[%emt 0:00:57]} Bxb2 {[%emt 0:00:00]} 39. Qxf7+ {[%emt 0:00:06]} 1-0

[Event "Sunway Sitges op"]
[Site "Sitges ESP"]
[Date "2023.12.22"]
[Round "10.16"]
[White "Golubka, Petro"]
[Black "Henriquez Villagra, Cristobal"]
[Result "1/2-1/2"]
[ECO "B12"]
[WhiteElo "2440"]
[BlackElo "2607"]
[WhiteFideId "-1"]
[BlackFideId "-1"]
[PlyCount "75"]
[GameId "2129404702284167"]
[EventDate "2023.12.12"]
[EventType "swiss"]
[EventRounds "10"]
[EventCountry "ESP"]
[SourceTitle "10 Days #745"]
[Source "ChessMix"]
[SourceDate "2024.01.01"]
[SourceVersion "1"]
[SourceVersionDate "2024.01.01"]
[SourceQuality "1"]
[TimeControl "90/40+30:0"]
[WhiteClock "0:15:26"]
[BlackClock "0:16:38"]

{[%evp 0,75,28,28,67,73,77,77,82,62,62,50,61,20,29,27,38,29,52,31,28,9,68,67,54,56,71,66,59,45,47,31,51,44,85,64,75,39,37,34,72,74,73,63,69,72,73,68,65,79,84,77,55,69,42,56,32,24,26,5,0,17,14,0,0,0,0,0,0,0,0,0,0,0,0,0,0,0]} 1. e4 {[%emt 0:00:00]} c6 {[%emt 0:00:00]} 2. d4 {[%emt 0:00:00]} d5 {[%emt 0:00:00]} 3. e5 {[%emt 0:00:00]} c5 {[%emt 0:00:00]} 4. Nf3 {[%emt 0:00:00]} cxd4 {[%emt 0:00:00]} 5. Nxd4 {[%emt 0:00:00]} Nc6 {[%emt 0:00:00]} 6. Nxc6 {[%emt 0:00:00]} bxc6 {[%emt 0:00:00]} 7. Bd3 {[%emt 0:00:00]} e6 {[%emt 0:00:00]} 8. O-O {[%emt 0:00:00]} a5 {[%emt 0:00:00]} 9. Be3 {[%emt 0:00:00]} Ne7 {[%emt 0:00:00]} 10. f4 {[%emt 0:00:00]} a4 {[%emt 0:00:00]} 11. Nd2 {[%emt 0:00:00]} Nf5 {[%emt 0:00:00]} 12. Bf2 {[%emt 0:00:00]} a3 {[%emt 0:00:00]} 13. b3 {[%emt 0:00:00]} Ba6 {[%emt 0:00:00]} 14. Qe2 {[%emt 0:00:00]} Bxd3 {[%emt 0:00:00]} 15. cxd3 {[%emt 0:00:00]} h5 {[%emt 0:00:00]} 16. Rac1 {[%emt 0:00:00]} Kd7 {[%emt 0:00:00]} 17. Ne4 {[%emt 0:00:00]} Be7 {[%emt 0:00:00]} 18. Ng3 {[%emt 0:00:00]} Nxg3 {[%emt 0:00:00]} 19. hxg3 {[%emt 0:00:00]} Ra5 {[%emt 0:00:00]} 20. Rc2 {[%emt 0:00:00]} g6 {[%emt 0:00:00]} 21. Rfc1 {[%emt 0:00:00]} Qa8 {[%emt 0:00:00]} 22. Rxc6 {[%emt 0:00:00]} Qxc6 {[%emt 0:00:00]} 23. Rxc6 {[%emt 0:00:00]} Kxc6 {[%emt 0:00:00]} 24. Qc2+ {[%emt 0:00:00]} Kb7 {[%emt 0:00:00]} 25. b4 {[%emt 0:00:00]} Raa8 {[%emt 0:00:00]} 26. Bc5 {[%emt 0:00:00]} Bxc5+ {[%emt 0:00:00]} 27. Qxc5 {[%emt 0:00:00]} Rhc8 {[%emt 0:00:00]} 28. Qb5+ {[%emt 0:00:00]} Kc7 {[%emt 0:00:00]} 29. g4 {[%emt 0:00:00]} hxg4 {[%emt 0:00:00]} 30. Kh2 {[%emt 0:00:00]} Kd8 {[%emt 0:00:00]} 31. Kg3 {[%emt 0:00:00]} Ke7 {[%emt 0:00:00]} 32. Kxg4 {[%emt 0:00:00]} Kf8 {[%emt 0:00:00]} 33. Qb7 {[%emt 0:00:00]} Rab8 {[%emt 0:00:00]} 34. Qa7 {[%emt 0:00:00]} Rxb4 {[%emt 0:00:00]} 35. Qxa3 {[%emt 0:00:00]} Rcb8 {[%emt 0:00:00]} 36. Kg5 {[%emt 0:01:42]} Kg7 {[%emt 0:01:08]} 37. g4 {[%emt 0:01:39]} Rb2 {[%emt 0:01:24]} 38. Qa7 {[%emt 0:00:53]} 1/2-1/2

[Event "Allauch FRA, 5th Open"]
[Site "Allauch FRA"]
[Date "2023.08.28"]
[Round "1.1"]
[White "Golubka, Petro"]
[Black "Boghossian, Lucie"]
[Result "1-0"]
[ECO "B22"]
[WhiteElo "2421"]
[BlackElo "1715"]
[WhiteFideId "-1"]
[BlackFideId "-1"]
[PlyCount "55"]
[GameId "2129404705513960"]
[EventDate "2023.08.28"]
[EventType "swiss"]
[EventRounds "9"]
[EventCountry "FRA"]
[SourceTitle "10 Days #735"]
[Source "ChessMix "]
[SourceDate "2023.09.20"]
[SourceVersion "1"]
[SourceVersionDate "2023.09.20"]
[SourceQuality "1"]
[TimeControl "1"]

1. e4 {[%emt 0:00:00]} c5 {[%emt 0:00:00]} 2. Nf3 {[%emt 0:00:00]} e6 {[%emt 0:00:00]} 3. c3 {[%emt 0:00:00]} Nc6 {[%emt 0:00:00]} 4. d4 {[%emt 0:00:00]} cxd4 {[%emt 0:00:00]} 5. cxd4 {[%emt 0:00:00]} Nf6 {[%emt 0:00:00]} 6. Bd3 {[%emt 0:00:00]} d6 {[%emt 0:00:00]} 7. O-O {[%emt 0:00:00]} Be7 {[%emt 0:00:00]} 8. Nc3 {[%emt 0:00:00]} O-O {[%emt 0:00:00]} 9. Bf4 {[%emt 0:00:00]} Nh5 {[%emt 0:00:00]} 10. Be3 {[%emt 0:00:00]} e5 {[%emt 0:00:00]} 11. dxe5 {[%emt 0:00:00]} dxe5 {[%emt 0:00:00]} 12. Bb5 {[%emt 0:00:00]} Bf6 {[%emt 0:00:00]} 13. Bc5 {[%emt 0:00:00]} Qxd1 {[%emt 0:00:00]} 14. Rfxd1 {[%emt 0:00:00]} Rd8 {[%emt 0:00:00]} 15. Bxc6 {[%emt 0:00:00]} Rxd1+ {[%emt 0:00:00]} 16. Rxd1 {[%emt 0:00:00]} bxc6 {[%emt 0:00:00]} 17. Nxe5 {[%emt 0:00:00]} Bb7 {[%emt 0:00:00]} 18. Nxf7 {[%emt 0:00:00]} Kxf7 {[%emt 0:00:00]} 19. Rd7+ {[%emt 0:00:00]} Kg8 {[%emt 0:00:00]} 20. Rxb7 {[%emt 0:00:00]} Be5 {[%emt 0:00:00]} 21. Rxa7 {[%emt 0:00:00]} Rb8 {[%emt 0:00:00]} 22. Na4 {[%emt 0:00:00]} Nf4 {[%emt 0:00:00]} 23. Rd7 {[%emt 0:00:00]} Bxb2 {[%emt 0:00:00]} 24. Bd6 {[%emt 0:00:00]} Ne2+ {[%emt 0:00:00]} 25. Kf1 {[%emt 0:00:00]} Re8 {[%emt 0:00:00]} 26. f3 {[%emt 0:00:00]} Ra8 {[%emt 0:00:00]} 27. Nxb2 {[%emt 0:00:00]} Rxa2 {[%emt 0:00:00]} 28. Be5 {[%emt 0:00:00]} 1-0

[Event "Allauch FRA, 5th Open"]
[Site "Allauch FRA"]
[Date "2023.08.29"]
[Round "2.1"]
[White "Djoudi, Labir"]
[Black "Golubka, Petro"]
[Result "0-1"]
[ECO "A50"]
[WhiteElo "1821"]
[BlackElo "2421"]
[WhiteFideId "-1"]
[BlackFideId "-1"]
[PlyCount "104"]
[GameId "2129404705513968"]
[EventDate "2023.08.28"]
[EventType "swiss"]
[EventRounds "9"]
[EventCountry "FRA"]
[SourceTitle "10 Days #735"]
[Source "ChessMix "]
[SourceDate "2023.09.20"]
[SourceVersion "1"]
[SourceVersionDate "2023.09.20"]
[SourceQuality "1"]
[TimeControl "1"]

1. d4 {[%emt 0:00:00]} Nf6 {[%emt 0:00:00]} 2. c4 {[%emt 0:00:00]} g6 {[%emt 0:00:00]} 3. Nf3 {[%emt 0:00:00]} Bg7 {[%emt 0:00:00]} 4. g3 {[%emt 0:00:00]} b6 {[%emt 0:00:00]} 5. Bg2 {[%emt 0:00:00]} Bb7 {[%emt 0:00:00]} 6. Nc3 {[%emt 0:00:00]} O-O {[%emt 0:00:00]} 7. O-O {[%emt 0:00:00]} a5 {[%emt 0:00:00]} 8. Re1 {[%emt 0:00:00]} Ne4 {[%emt 0:00:00]} 9. Qd3 {[%emt 0:00:00]} Nxc3 {[%emt 0:00:00]} 10. Qxc3 {[%emt 0:00:00]} Be4 {[%emt 0:00:00]} 11. Bf4 {[%emt 0:00:00]} d6 {[%emt 0:00:00]} 12. Qe3 {[%emt 0:00:00]} Bb7 {[%emt 0:00:00]} 13. Bh6 {[%emt 0:00:00]} e6 {[%emt 0:00:00]} 14. h4 {[%emt 0:00:00]} Nd7 {[%emt 0:00:00]} 15. Bxg7 {[%emt 0:00:00]} Kxg7 {[%emt 0:00:00]} 16. Qg5 {[%emt 0:00:00]} a4 {[%emt 0:00:00]} 17. Qxd8 {[%emt 0:00:00]} Rfxd8 {[%emt 0:00:00]} 18. a3 {[%emt 0:00:00]} h6 {[%emt 0:00:00]} 19. Nd2 {[%emt 0:00:00]} Bxg2 {[%emt 0:00:00]} 20. Kxg2 {[%emt 0:00:00]} Rdb8 {[%emt 0:00:00]} 21. Rac1 {[%emt 0:00:00]} Kf6 {[%emt 0:00:00]} 22. Ne4+ {[%emt 0:00:00]} Ke7 {[%emt 0:00:00]} 23. Nc3 {[%emt 0:00:00]} c6 {[%emt 0:00:00]} 24. Rc2 {[%emt 0:00:00]} Ra5 {[%emt 0:00:00]} 25. e4 {[%emt 0:00:00]} g5 {[%emt 0:00:00]} 26. hxg5 {[%emt 0:00:00]} hxg5 {[%emt 0:00:00]} 27. Rh1 {[%emt 0:00:00]} g4 {[%emt 0:05:20]} 28. f4 {[%emt 0:00:00]} gxf3+ {[%emt 0:00:00]} 29. Kxf3 {[%emt 0:00:00]} Rg8 {[%emt 0:00:00]} 30. Ne2 {[%emt 0:00:00]} Rag5 {[%emt 0:00:00]} 31. Rh3 {[%emt 0:00:00]} Ra5 {[%emt 0:00:00]} 32. Ke3 {[%emt 0:00:00]} Rg7 {[%emt 0:00:00]} 33. Nf4 {[%emt 0:00:00]} Rag5 {[%emt 0:00:00]} 34. Rg2 {[%emt 0:00:00]} c5 {[%emt 0:00:00]} 35. Nd3 {[%emt 0:00:00]} cxd4+ {[%emt 0:00:00]} 36. Kxd4 {[%emt 0:00:00]} b5 {[%emt 0:00:00]} 37. Nb4 {[%emt 0:00:00]} bxc4 {[%emt 0:00:00]} 38. Kxc4 {[%emt 0:00:00]} Rc5+ {[%emt 0:00:00]} 39. Kd4 {[%emt 0:00:00]} Nf6 {[%emt 0:00:00]} 40. Nd3 {[%emt 0:00:00]} Rc6 {[%emt 0:00:00]} 41. Rh4 {[%emt 0:00:00]} Rg5 {[%emt 0:00:00]} 42. Nb4 {[%emt 0:00:00]} Rc1 {[%emt 0:00:00]} 43. Ke3 {[%emt 0:00:00]} Re1+ {[%emt 0:00:00]} 44. Kf3 {[%emt 0:00:00]} Rf1+ {[%emt 0:00:00]} 45. Ke2 {[%emt 0:00:00]} Rb1 {[%emt 0:00:00]} 46. Kf3 {[%emt 0:00:00]} Nd7 {[%emt 0:00:00]} 47. Kf4 {[%emt 0:00:00]} Rc5 {[%emt 0:00:00]} 48. g4 {[%emt 0:00:00]} Ne5 {[%emt 0:00:00]} 49. Rh5 {[%emt 0:00:00]} Rf1+ {[%emt 0:00:00]} 50. Kg3 {[%emt 0:00:00]} Rf3+ {[%emt 0:00:00]} 51. Kh2 {[%emt 0:00:00]} Nxg4+ {[%emt 0:00:00]} 52. Rxg4 {[%emt 0:00:00]} Rxh5+ {[%emt 0:00:00]} 0-1

[Event "Allauch FRA, 5th Open"]
[Site "Allauch FRA"]
[Date "2023.08.29"]
[Round "3.1"]
[White "Golubka, Petro"]
[Black "Derige Kane, Yan"]
[Result "0-1"]
[ECO "B12"]
[WhiteElo "2421"]
[BlackElo "2162"]
[WhiteFideId "-1"]
[BlackFideId "-1"]
[PlyCount "66"]
[GameId "2129404705513975"]
[EventDate "2023.08.28"]
[EventType "swiss"]
[EventRounds "9"]
[EventCountry "FRA"]
[SourceTitle "10 Days #735"]
[Source "ChessMix "]
[SourceDate "2023.09.20"]
[SourceVersion "1"]
[SourceVersionDate "2023.09.20"]
[SourceQuality "1"]
[TimeControl "1"]

1. e4 {[%emt 0:00:00]} c6 {[%emt 0:00:00]} 2. d4 {[%emt 0:00:00]} d5 {[%emt 0:00:00]} 3. e5 {[%emt 0:00:00]} Bf5 {[%emt 0:00:00]} 4. g4 {[%emt 0:00:00]} Be4 {[%emt 0:00:00]} 5. f3 {[%emt 0:00:00]} Bg6 {[%emt 0:00:00]} 6. e6 {[%emt 0:00:00]} fxe6 {[%emt 0:00:00]} 7. Nc3 {[%emt 0:00:00]} Qd6 {[%emt 0:00:00]} 8. f4 {[%emt 0:00:00]} Nf6 {[%emt 0:00:00]} 9. Bd3 {[%emt 0:00:00]} Bxd3 {[%emt 0:00:00]} 10. cxd3 {[%emt 0:00:00]} Na6 {[%emt 0:00:00]} 11. g5 {[%emt 0:00:00]} Nd7 {[%emt 0:00:00]} 12. Nf3 {[%emt 0:00:00]} g6 {[%emt 0:00:00]} 13. h4 {[%emt 0:00:00]} Bg7 {[%emt 0:00:00]} 14. Be3 {[%emt 0:00:00]} O-O-O {[%emt 0:00:00]} 15. Qd2 {[%emt 0:00:00]} Rhf8 {[%emt 0:00:00]} 16. O-O-O {[%emt 0:00:00]} Kb8 {[%emt 0:00:00]} 17. h5 {[%emt 0:00:00]} c5 {[%emt 0:00:00]} 18. hxg6 {[%emt 0:00:00]} hxg6 {[%emt 0:00:00]} 19. dxc5 {[%emt 0:00:00]} Ndxc5 {[%emt 0:00:00]} 20. d4 {[%emt 0:00:00]} Ne4 {[%emt 0:00:00]} 21. Nxe4 {[%emt 0:00:00]} dxe4 {[%emt 0:00:00]} 22. Nh4 {[%emt 0:00:00]} Nb4 {[%emt 0:00:00]} 23. Kb1 {[%emt 0:00:00]} Rc8 {[%emt 0:00:00]} 24. Rc1 {[%emt 0:00:00]} Nd3 {[%emt 0:00:00]} 25. Rxc8+ {[%emt 0:00:00]} Rxc8 {[%emt 0:00:00]} 26. Nxg6 {[%emt 0:00:00]} Bxd4 {[%emt 0:00:00]} 27. Bxd4 {[%emt 0:00:00]} Qxd4 {[%emt 0:00:00]} 28. Ne5 {[%emt 0:00:00]} Qd5 {[%emt 0:00:00]} 29. Nxd3 {[%emt 0:00:00]} e3 {[%emt 0:00:00]} 30. Qe1 {[%emt 0:00:00]} Qxd3+ {[%emt 0:00:00]} 31. Ka1 {[%emt 0:00:00]} e2 {[%emt 0:00:00]} 32. a3 {[%emt 0:00:00]} Rd8 {[%emt 0:00:00]} 33. Qa5 {[%emt 0:00:00]} Qd5 {[%emt 0:00:00]} 0-1

[Event "Allauch FRA, 5th Open"]
[Site "Allauch FRA"]
[Date "2023.08.30"]
[Round "4.4"]
[White "Metras, Dominique"]
[Black "Golubka, Petro"]
[Result "1/2-1/2"]
[ECO "A41"]
[WhiteElo "1767"]
[BlackElo "2421"]
[WhiteFideId "-1"]
[BlackFideId "-1"]
[PlyCount "67"]
[GameId "2129404705513986"]
[EventDate "2023.08.28"]
[EventType "swiss"]
[EventRounds "9"]
[EventCountry "FRA"]
[SourceTitle "10 Days #735"]
[Source "ChessMix "]
[SourceDate "2023.09.20"]
[SourceVersion "1"]
[SourceVersionDate "2023.09.20"]
[SourceQuality "1"]
[TimeControl "1"]

1. d4 {[%emt 0:00:00]} g6 {[%emt 0:00:00]} 2. c4 {[%emt 0:00:00]} Bg7 {[%emt 0:00:00]} 3. Nc3 {[%emt 0:00:00]} d6 {[%emt 0:00:00]} 4. Nf3 {[%emt 0:00:00]} Nc6 {[%emt 0:00:00]} 5. h3 {[%emt 0:00:00]} f5 {[%emt 0:00:00]} 6. e4 {[%emt 0:00:00]} fxe4 {[%emt 0:00:00]} 7. Nxe4 {[%emt 0:00:00]} Bf5 {[%emt 0:00:00]} 8. Ng3 {[%emt 0:00:00]} Bd7 {[%emt 0:00:00]} 9. Be2 {[%emt 0:00:00]} Nf6 {[%emt 0:00:00]} 10. O-O {[%emt 0:00:00]} O-O {[%emt 0:00:00]} 11. Be3 {[%emt 0:05:35]} a5 {[%emt 0:00:00]} 12. Qd2 {[%emt 0:00:00]} b6 {[%emt 0:00:00]} 13. Bh6 {[%emt 0:00:00]} e6 {[%emt 0:00:00]} 14. Bxg7 {[%emt 0:00:00]} Kxg7 {[%emt 0:00:00]} 15. Rac1 {[%emt 0:00:00]} Rb8 {[%emt 0:00:00]} 16. b3 {[%emt 0:00:00]} Ne7 {[%emt 0:00:00]} 17. c5 {[%emt 0:00:00]} Nfd5 {[%emt 0:00:00]} 18. Ne4 {[%emt 0:00:00]} Nf4 {[%emt 0:00:00]} 19. cxd6 {[%emt 0:00:00]} cxd6 {[%emt 0:00:00]} 20. g3 {[%emt 0:00:00]} Nxe2+ {[%emt 0:00:00]} 21. Qxe2 {[%emt 0:00:05]} Nf5 {[%emt 0:00:00]} 22. Neg5 {[%emt 0:00:00]} Re8 {[%emt 0:00:00]} 23. Rfd1 {[%emt 0:00:00]} Rc8 {[%emt 0:00:00]} 24. g4 {[%emt 0:00:00]} Rxc1 {[%emt 0:00:00]} 25. Rxc1 {[%emt 0:00:00]} Nxd4 {[%emt 0:00:00]} 26. Qb2 {[%emt 0:00:00]} e5 {[%emt 0:00:00]} 27. Nxd4 {[%emt 0:00:00]} Qxg5 {[%emt 0:00:00]} 28. Rc7 {[%emt 0:00:00]} Qd8 {[%emt 0:00:00]} 29. Nb5 {[%emt 0:00:00]} Re7 {[%emt 0:00:00]} 30. Qe2 {[%emt 0:00:00]} d5 {[%emt 0:00:00]} 31. Rb7 {[%emt 0:00:00]} Bxb5 {[%emt 0:00:00]} 32. Qxe5+ {[%emt 0:00:00]} Kf7 {[%emt 0:00:00]} 33. Rxe7+ {[%emt 0:00:18]} Qxe7 {[%emt 0:00:00]} 34. Qxd5+ {[%emt 0:00:00]} 1/2-1/2

[Event "Allauch FRA, 5th Open"]
[Site "Allauch FRA"]
[Date "2023.08.31"]
[Round "6.3"]
[White "Charvein, Gabriel"]
[Black "Golubka, Petro"]
[Result "0-1"]
[ECO "B90"]
[WhiteElo "1993"]
[BlackElo "2421"]
[WhiteFideId "-1"]
[BlackFideId "-1"]
[PlyCount "86"]
[GameId "2129404705514001"]
[EventDate "2023.08.28"]
[EventType "swiss"]
[EventRounds "9"]
[EventCountry "FRA"]
[SourceTitle "10 Days #735"]
[Source "ChessMix "]
[SourceDate "2023.09.20"]
[SourceVersion "1"]
[SourceVersionDate "2023.09.20"]
[SourceQuality "1"]
[TimeControl "1"]

1. e4 {[%emt 0:00:00]} c5 {[%emt 0:00:00]} 2. Nf3 {[%emt 0:00:00]} d6 {[%emt 0:00:00]} 3. d4 {[%emt 0:00:00]} cxd4 {[%emt 0:00:00]} 4. Nxd4 {[%emt 0:00:00]} Nf6 {[%emt 0:00:00]} 5. Nc3 {[%emt 0:00:00]} Nc6 {[%emt 0:00:00]} 6. Be3 {[%emt 0:00:00]} e5 {[%emt 0:00:00]} 7. Nb3 {[%emt 0:00:00]} Be6 {[%emt 0:00:00]} 8. Qd2 {[%emt 0:00:00]} a6 {[%emt 0:00:00]} 9. f3 {[%emt 0:00:00]} h5 {[%emt 0:00:00]} 10. Nd5 {[%emt 0:00:00]} Bxd5 {[%emt 0:00:00]} 11. exd5 {[%emt 0:00:00]} Ne7 {[%emt 0:00:00]} 12. c4 {[%emt 0:00:00]} b6 {[%emt 0:00:00]} 13. Bd3 {[%emt 0:00:00]} g6 {[%emt 0:00:00]} 14. h3 {[%emt 0:00:00]} a5 {[%emt 0:00:00]} 15. a4 {[%emt 0:00:00]} Bg7 {[%emt 0:00:00]} 16. Qe2 {[%emt 0:00:00]} h4 {[%emt 0:00:00]} 17. Qf2 {[%emt 0:00:00]} Nd7 {[%emt 0:00:00]} 18. Nd2 {[%emt 0:00:00]} f5 {[%emt 0:00:00]} 19. Qe2 {[%emt 0:00:00]} Bh6 {[%emt 0:00:00]} 20. Bxh6 {[%emt 0:00:00]} Rxh6 {[%emt 0:00:00]} 21. O-O-O {[%emt 0:00:00]} Nc5 {[%emt 0:00:00]} 22. Bc2 {[%emt 0:00:00]} Ng8 {[%emt 0:00:00]} 23. Rdg1 {[%emt 0:00:00]} Qg5 {[%emt 0:00:00]} 24. Rf1 {[%emt 0:00:00]} Qf4 {[%emt 0:00:00]} 25. Re1 {[%emt 0:00:00]} Nf6 {[%emt 0:00:00]} 26. Qe3 {[%emt 0:00:00]} Qxe3 {[%emt 0:00:00]} 27. Rxe3 {[%emt 0:00:00]} Kf7 {[%emt 0:00:00]} 28. b3 {[%emt 0:00:00]} Nh5 {[%emt 0:00:00]} 29. Kd1 {[%emt 0:00:00]} Nf4 {[%emt 0:00:00]} 30. Rg1 {[%emt 0:00:00]} Rh5 {[%emt 0:00:00]} 31. Ke1 {[%emt 0:00:00]} Kf6 {[%emt 0:00:00]} 32. Kf2 {[%emt 0:00:00]} Re8 {[%emt 0:00:00]} 33. Nb1 {[%emt 0:00:00]} Rg5 {[%emt 0:00:00]} 34. Nc3 {[%emt 0:00:00]} Rg3 {[%emt 0:00:00]} 35. Ne2 {[%emt 0:00:00]} Nxe2 {[%emt 0:00:24]} 36. Rxe2 {[%emt 0:00:00]} Na6 {[%emt 0:00:00]} 37. Re3 {[%emt 0:00:00]} Kg5 {[%emt 0:00:00]} 38. Rge1 {[%emt 0:00:00]} Rh8 {[%emt 0:00:00]} 39. Bb1 {[%emt 0:00:00]} Kf4 {[%emt 0:00:00]} 40. Bd3 {[%emt 0:00:00]} Nc5 {[%emt 0:00:00]} 41. Bc2 {[%emt 0:00:00]} Rh5 {[%emt 0:00:00]} 42. Kf1 {[%emt 0:00:00]} e4 {[%emt 0:00:00]} 43. Kf2 {[%emt 0:00:00]} Rhg5 {[%emt 0:00:00]} 0-1

[Event "Allauch FRA, 5th Open"]
[Site "Allauch FRA"]
[Date "2023.08.31"]
[Round "7.2"]
[White "Golubka, Petro"]
[Black "Chaumet, Etienne"]
[Result "1-0"]
[ECO "B20"]
[WhiteElo "2421"]
[BlackElo "2075"]
[WhiteFideId "-1"]
[BlackFideId "-1"]
[PlyCount "83"]
[GameId "2129404705514008"]
[EventDate "2023.08.28"]
[EventType "swiss"]
[EventRounds "9"]
[EventCountry "FRA"]
[SourceTitle "10 Days #735"]
[Source "ChessMix "]
[SourceDate "2023.09.20"]
[SourceVersion "1"]
[SourceVersionDate "2023.09.20"]
[SourceQuality "1"]
[TimeControl "1"]

1. e4 {[%emt 0:00:00]} c5 {[%emt 0:00:00]} 2. b3 {[%emt 0:00:00]} d6 {[%emt 0:00:00]} 3. Bb2 {[%emt 0:00:00]} Nf6 {[%emt 0:00:00]} 4. Bb5+ {[%emt 0:00:00]} Bd7 {[%emt 0:00:00]} 5. Qe2 {[%emt 0:00:00]} Nc6 {[%emt 0:00:00]} 6. Nc3 {[%emt 0:00:00]} g6 {[%emt 0:00:00]} 7. f4 {[%emt 0:00:00]} Nd4 {[%emt 0:00:00]} 8. Bxd7+ {[%emt 0:00:00]} Qxd7 {[%emt 0:00:00]} 9. Qd3 {[%emt 0:00:00]} Bg7 {[%emt 0:00:00]} 10. Nf3 {[%emt 0:00:00]} Nxf3+ {[%emt 0:00:00]} 11. Qxf3 {[%emt 0:00:00]} O-O {[%emt 0:00:00]} 12. O-O-O {[%emt 0:00:00]} b5 {[%emt 0:00:00]} 13. h3 {[%emt 0:00:00]} Qb7 {[%emt 0:00:00]} 14. e5 {[%emt 0:00:00]} Qxf3 {[%emt 0:00:00]} 15. gxf3 {[%emt 0:00:00]} b4 {[%emt 0:00:00]} 16. exf6 {[%emt 0:00:00]} bxc3 {[%emt 0:00:00]} 17. Bxc3 {[%emt 0:00:00]} Bxf6 {[%emt 0:00:00]} 18. Bxf6 {[%emt 0:00:00]} exf6 {[%emt 0:00:00]} 19. Rhe1 {[%emt 0:00:00]} Rfe8 {[%emt 0:00:00]} 20. Re3 {[%emt 0:00:00]} Re6 {[%emt 0:00:00]} 21. Rxe6 {[%emt 0:00:00]} fxe6 {[%emt 0:00:00]} 22. d4 {[%emt 0:00:00]} cxd4 {[%emt 0:00:00]} 23. Rxd4 {[%emt 0:00:00]} Rd8 {[%emt 0:00:00]} 24. Kd2 {[%emt 0:00:00]} Kf7 {[%emt 0:00:00]} 25. Ra4 {[%emt 0:00:00]} Rd7 {[%emt 0:00:00]} 26. c4 {[%emt 0:00:00]} g5 {[%emt 0:00:00]} 27. fxg5 {[%emt 0:00:00]} fxg5 {[%emt 0:00:00]} 28. Ra5 {[%emt 0:00:00]} Kg6 {[%emt 0:00:00]} 29. b4 {[%emt 0:00:00]} e5 {[%emt 0:00:00]} 30. a4 {[%emt 0:00:00]} Kh5 {[%emt 0:00:00]} 31. Rd5 {[%emt 0:00:00]} Kh4 {[%emt 0:00:00]} 32. c5 {[%emt 0:00:00]} Kxh3 {[%emt 0:00:00]} 33. Rxd6 {[%emt 0:00:00]} Rc7 {[%emt 0:00:00]} 34. c6 {[%emt 0:00:00]} h5 {[%emt 0:00:00]} 35. b5 {[%emt 0:00:00]} h4 {[%emt 0:00:00]} 36. a5 {[%emt 0:00:00]} Kg2 {[%emt 0:00:00]} 37. b6 {[%emt 0:00:00]} axb6 {[%emt 0:00:00]} 38. axb6 {[%emt 0:00:00]} Rh7 {[%emt 0:00:00]} 39. c7 {[%emt 0:00:00]} h3 {[%emt 0:00:00]} 40. c8=Q {[%emt 0:00:00]} h2 {[%emt 0:00:00]} 41. Ke3 {[%emt 0:00:00]} h1=Q {[%emt 0:00:00]} 42. Qg4+ {[%emt 0:00:00]} 1-0